[Event "Titled Tuesday Blitz August 08 Late 2023"]
[White "Mesa Cruz, Juan Carlos"]
[Black "Jimenez Martinez, Jose Vicente"]
[WhiteFideId "6423400"]
[BlackFideId "2264021"]
[WhiteElo "2417"]
[BlackElo "2634"]
[Result "1-0"]
[Round "10"]
[TimeControl "180+1"]
[Date "2023.08.08"]
[WhiteClock "0:02:16"]
[BlackClock "0:02:19"]
[Board "68"]

1. Nf3 {[%clk 0:03:00]}  d6 {[%clk 0:03:00]} 2. d4 {[%clk 0:03:00]}  g6 {[%clk 0:03:01]} 3. c4 {[%clk 0:03:00]}  Bg7 {[%clk 0:03:02]} 4. Nc3 {[%clk 0:03:01]}  Nf6 {[%clk 0:03:02]} 5. e4 {[%clk 0:03:01]}  O-O {[%clk 0:03:02]} 6. Be2 {[%clk 0:03:02]}  Bg4 {[%clk 0:03:03]} 7. O-O {[%clk 0:02:54]}  Nfd7 {[%clk 0:03:03]} 8. Be3 {[%clk 0:02:51]}  e5 {[%clk 0:03:01]} 9. dxe5 {[%clk 0:02:49]}  Bxf3 {[%clk 0:02:57]} 10. Bxf3 {[%clk 0:02:50]}  dxe5 {[%clk 0:02:57]} 11. Bg4 {[%clk 0:02:42]}  h5 {[%clk 0:02:52]} 12. Bxd7 {[%clk 0:02:41]}  Qxd7 {[%clk 0:02:49]} 13. Qxd7 {[%clk 0:02:40]}  Nxd7 {[%clk 0:02:50]} 14. Rfd1 {[%clk 0:02:40]}  Nb6 {[%clk 0:02:43]} 15. b3 {[%clk 0:02:37]}  c6 {[%clk 0:02:43]} 16. a4 {[%clk 0:02:31]}  Rad8 {[%clk 0:02:40]} 17. a5 {[%clk 0:02:31]}  Nc8 {[%clk 0:02:37]} 18. Na4 {[%clk 0:02:31]}  Rfe8 {[%clk 0:02:31]} 19. Nc5 {[%clk 0:02:30]}  b6 {[%clk 0:02:31]} 20. axb6 {[%clk 0:02:27]}  axb6 {[%clk 0:02:32]} 21. Na6 {[%clk 0:02:24]}  Rxd1+ {[%clk 0:02:30]} 22. Rxd1 {[%clk 0:02:23]}  Bf6 {[%clk 0:02:31]} 23. Nb4 {[%clk 0:02:20]}  c5 {[%clk 0:02:21]} 24. Nd5 {[%clk 0:02:19]}  Bd8 {[%clk 0:02:19]} 25. Ra1 {[%clk 0:02:19]}  Ne7 {[%clk 0:02:19]} 26. Nf6+ {[%clk 0:02:16]}  Kf8 {[%clk 0:02:19]} 27. Bh6# {[%clk 0:02:16]} 1-0


[Site "https://www.chess.com"]

[Event "Titled Tuesday Blitz August 08 Late 2023"]
[White "Slaby, Jerzy"]
[Black "Mazurkiewicz, Michal"]
[WhiteFideId "1121405"]
[BlackFideId "1124943"]
[WhiteElo "2527"]
[BlackElo "2400"]
[Result "1-0"]
[Round "10"]
[TimeControl "180+1"]
[Date "2023.08.08"]
[WhiteClock "0:01:47"]
[BlackClock "0:00:25"]
[Board "70"]

1. e4 {[%clk 0:03:00]}  d6 {[%clk 0:02:55]} 2. d4 {[%clk 0:03:00]}  Nf6 {[%clk 0:02:55]} 3. f3 {[%clk 0:03:00]}  e5 {[%clk 0:02:53]} 4. Ne2 {[%clk 0:02:56]}  Be7 {[%clk 0:02:53]} 5. Nbc3 {[%clk 0:02:55]}  O-O {[%clk 0:02:54]} 6. Be3 {[%clk 0:02:55]}  c6 {[%clk 0:02:54]} 7. Qd2 {[%clk 0:02:54]}  b5 {[%clk 0:02:54]} 8. O-O-O {[%clk 0:02:53]}  Nbd7 {[%clk 0:02:54]} 9. g4 {[%clk 0:02:47]}  a5 {[%clk 0:02:49]} 10. Ng3 {[%clk 0:02:47]}  a4 {[%clk 0:02:44]} 11. g5 {[%clk 0:02:46]}  Ne8 {[%clk 0:02:44]} 12. Nf5 {[%clk 0:02:43]}  b4 {[%clk 0:02:44]} 13. Ne2 {[%clk 0:02:41]}  Nb6 {[%clk 0:02:43]} 14. Neg3 {[%clk 0:02:39]}  b3 {[%clk 0:02:36]} 15. cxb3 {[%clk 0:02:36]}  axb3 {[%clk 0:02:36]} 16. a3 {[%clk 0:02:36]}  d5 {[%clk 0:02:32]} 17. dxe5 {[%clk 0:02:32]}  Bxa3 {[%clk 0:02:20]} 18. bxa3 {[%clk 0:02:28]}  Rxa3 {[%clk 0:02:21]} 19. Qb4 {[%clk 0:02:21]}  Ra1+ {[%clk 0:01:38]} 20. Kb2 {[%clk 0:02:18]}  Rxd1 {[%clk 0:01:37]} 21. Bxb6 {[%clk 0:02:16]}  Qxg5 {[%clk 0:01:29]} 22. Be3 {[%clk 0:02:00]}  Qd8 {[%clk 0:01:21]} 23. Ne7+ {[%clk 0:01:59]}  Kh8 {[%clk 0:01:21]} 24. Nxc6 {[%clk 0:01:53]}  Nc7 {[%clk 0:00:40]} 25. Nxd8 {[%clk 0:01:51]}  Rxd8 {[%clk 0:00:25]} 26. Bb6 {[%clk 0:01:47]} 1-0


[Site "https://www.chess.com"]

[Event "Titled Tuesday Blitz August 08 Late 2023"]
[White "Gabdushev, Ruslan"]
[Black "Janaszak, Dawid"]
[WhiteFideId "4137833"]
[BlackFideId "1119206"]
[WhiteElo "2386"]
[BlackElo "2521"]
[Result "0-1"]
[Round "10"]
[TimeControl "180+1"]
[Date "2023.08.08"]
[WhiteClock "0:00:00"]
[BlackClock "0:00:53"]
[Board "71"]

1. g3 {[%clk 0:03:00]}  d5 {[%clk 0:02:57]} 2. Bg2 {[%clk 0:03:00]}  e5 {[%clk 0:02:55]} 3. c3 {[%clk 0:02:58]}  Nc6 {[%clk 0:02:51]} 4. d3 {[%clk 0:02:54]}  f5 {[%clk 0:02:49]} 5. Qb3 {[%clk 0:02:51]}  Nf6 {[%clk 0:02:48]} 6. Bg5 {[%clk 0:02:51]}  e4 {[%clk 0:02:45]} 7. dxe4 {[%clk 0:02:46]}  dxe4 {[%clk 0:02:41]} 8. Nd2 {[%clk 0:02:44]}  h6 {[%clk 0:02:37]} 9. Be3 {[%clk 0:02:32]}  Ng4 {[%clk 0:02:30]} 10. Nf1 {[%clk 0:02:13]}  Bd6 {[%clk 0:02:22]} 11. Nh3 {[%clk 0:02:05]}  Qe7 {[%clk 0:02:18]} 12. Nf4 {[%clk 0:02:02]}  Qf7 {[%clk 0:02:18]} 13. h3 {[%clk 0:01:53]}  Nge5 {[%clk 0:02:14]} 14. h4 {[%clk 0:01:40]}  O-O {[%clk 0:02:07]} 15. Qxf7+ {[%clk 0:01:36]}  Kxf7 {[%clk 0:02:07]} 16. f3 {[%clk 0:01:31]}  exf3 {[%clk 0:02:02]} 17. Bxf3 {[%clk 0:01:27]}  Nxf3+ {[%clk 0:02:00]} 18. exf3 {[%clk 0:01:27]}  Ne5 {[%clk 0:01:57]} 19. Kf2 {[%clk 0:01:16]}  Bd7 {[%clk 0:01:53]} 20. Bd4 {[%clk 0:01:07]}  Bc6 {[%clk 0:01:54]} 21. Bxe5 {[%clk 0:01:04]}  Bxe5 {[%clk 0:01:55]} 22. Ne3 {[%clk 0:01:03]}  g5 {[%clk 0:01:34]} 23. hxg5 {[%clk 0:00:57]}  hxg5 {[%clk 0:01:34]} 24. Nd3 {[%clk 0:00:44]}  Bxg3+ {[%clk 0:01:33]} 25. Kxg3 {[%clk 0:00:44]}  f4+ {[%clk 0:01:33]} 26. Kg4 {[%clk 0:00:41]}  fxe3 {[%clk 0:01:12]} 27. Ne5+ {[%clk 0:00:34]}  Kg7 {[%clk 0:01:02]} 28. Nxc6 {[%clk 0:00:33]}  bxc6 {[%clk 0:00:59]} 29. Rh5 {[%clk 0:00:20]}  Rf4+ {[%clk 0:00:55]} 30. Kxg5 {[%clk 0:00:00]}  Raf8 {[%clk 0:00:53]} 0-1


[Site "https://www.chess.com"]

[Event "Titled Tuesday Blitz August 08 Late 2023"]
[White "kiwibobo"]
[Black "Sam, Gabriel"]
[BlackFideId "75000776"]
[WhiteElo "2384"]
[BlackElo "2508"]
[Result "1-0"]
[Round "10"]
[TimeControl "180+1"]
[Date "2023.08.08"]
[WhiteClock "0:00:46"]
[BlackClock "0:00:00"]
[Board "72"]

1. e4 {[%clk 0:03:00]}  c5 {[%clk 0:02:59]} 2. Nf3 {[%clk 0:03:00]}  e6 {[%clk 0:02:59]} 3. d4 {[%clk 0:03:01]}  cxd4 {[%clk 0:02:59]} 4. Nxd4 {[%clk 0:03:02]}  Nc6 {[%clk 0:02:59]} 5. Nc3 {[%clk 0:03:02]}  Qc7 {[%clk 0:02:59]} 6. Be2 {[%clk 0:03:01]}  a6 {[%clk 0:02:59]} 7. O-O {[%clk 0:03:01]}  Nf6 {[%clk 0:03:00]} 8. Be3 {[%clk 0:03:01]}  Be7 {[%clk 0:02:55]} 9. f4 {[%clk 0:03:01]}  d6 {[%clk 0:02:53]} 10. a4 {[%clk 0:03:01]}  O-O {[%clk 0:02:52]} 11. Kh1 {[%clk 0:03:01]}  Bd7 {[%clk 0:02:51]} 12. Nb3 {[%clk 0:03:01]}  Na5 {[%clk 0:02:44]} 13. e5 {[%clk 0:02:57]}  Ne8 {[%clk 0:02:15]} 14. Ne4 {[%clk 0:02:25]}  Nxb3 {[%clk 0:02:02]} 15. cxb3 {[%clk 0:02:17]}  dxe5 {[%clk 0:01:51]} 16. fxe5 {[%clk 0:02:17]}  Bc6 {[%clk 0:01:51]} 17. Bd3 {[%clk 0:02:01]}  Rd8 {[%clk 0:01:37]} 18. Qe2 {[%clk 0:01:52]}  Qxe5 {[%clk 0:01:28]} 19. Bf4 {[%clk 0:01:48]}  Qa5 {[%clk 0:01:09]} 20. Rad1 {[%clk 0:01:39]}  Nf6 {[%clk 0:01:07]} 21. Bd2 {[%clk 0:01:29]}  Qc7 {[%clk 0:00:56]} 22. Nxf6+ {[%clk 0:01:27]}  Bxf6 {[%clk 0:00:47]} 23. Rxf6 {[%clk 0:01:18]}  gxf6 {[%clk 0:00:15]} 24. Qg4+ {[%clk 0:01:01]}  Kh8 {[%clk 0:00:16]} 25. Bc3 {[%clk 0:00:50]}  Qe7 {[%clk 0:00:10]} 26. Qh4 {[%clk 0:00:47]}  Rxd3 {[%clk 0:00:02]} 27. Bxf6+ {[%clk 0:00:45]}  Qxf6 {[%clk 0:00:01]} 28. Qxf6+ {[%clk 0:00:46]}  Kg8 {[%clk 0:00:00]} 29. Rxd3 {[%clk 0:00:46]} 1-0


[Site "https://www.chess.com"]

[Event "Titled Tuesday Blitz August 08 Late 2023"]
[White "Jovic, Stanoje"]
[Black "Ncatt"]
[WhiteFideId "905020"]
[WhiteElo "2482"]
[BlackElo "2376"]
[Result "1/2-1/2"]
[Round "10"]
[TimeControl "180+1"]
[Date "2023.08.08"]
[WhiteClock "0:00:20"]
[BlackClock "0:00:33"]
[Board "74"]

1. c4 {[%clk 0:03:00]}  c6 {[%clk 0:02:59]} 2. e4 {[%clk 0:03:00]}  d5 {[%clk 0:02:58]} 3. exd5 {[%clk 0:03:01]}  cxd5 {[%clk 0:02:57]} 4. cxd5 {[%clk 0:03:02]}  Nf6 {[%clk 0:02:56]} 5. Qa4+ {[%clk 0:03:01]}  Nbd7 {[%clk 0:02:54]} 6. Bc4 {[%clk 0:03:00]}  a6 {[%clk 0:02:50]} 7. d3 {[%clk 0:02:55]}  Rb8 {[%clk 0:02:49]} 8. Bb3 {[%clk 0:02:54]}  b5 {[%clk 0:02:45]} 9. Qf4 {[%clk 0:02:53]}  Bb7 {[%clk 0:02:42]} 10. Nc3 {[%clk 0:02:46]}  Nc5 {[%clk 0:02:37]} 11. Qg3 {[%clk 0:02:43]}  Nxb3 {[%clk 0:02:34]} 12. axb3 {[%clk 0:02:43]}  b4 {[%clk 0:02:32]} 13. Ne4 {[%clk 0:02:38]}  Nxd5 {[%clk 0:02:32]} 14. Ne2 {[%clk 0:02:32]}  g6 {[%clk 0:02:29]} 15. Qe5 {[%clk 0:02:18]}  f6 {[%clk 0:02:27]} 16. Qe6 {[%clk 0:02:10]}  Bg7 {[%clk 0:02:21]} 17. O-O {[%clk 0:02:03]}  Nc7 {[%clk 0:02:21]} 18. Qb6 {[%clk 0:01:50]}  O-O {[%clk 0:02:16]} 19. Qa5 {[%clk 0:01:20]}  Qxd3 {[%clk 0:02:10]} 20. N2g3 {[%clk 0:01:18]}  Ne6 {[%clk 0:02:02]} 21. Nc5 {[%clk 0:01:12]}  Nxc5 {[%clk 0:01:58]} 22. Qxc5 {[%clk 0:01:12]}  Qd5 {[%clk 0:01:53]} 23. Qxd5+ {[%clk 0:01:11]}  Bxd5 {[%clk 0:01:52]} 24. Rxa6 {[%clk 0:01:09]}  Bxb3 {[%clk 0:01:52]} 25. Ra7 {[%clk 0:01:08]}  e5 {[%clk 0:01:46]} 26. Be3 {[%clk 0:01:07]}  h5 {[%clk 0:01:43]} 27. Rc1 {[%clk 0:00:57]}  Rf7 {[%clk 0:01:40]} 28. Rxf7 {[%clk 0:00:53]}  Bxf7 {[%clk 0:01:40]} 29. Rc7 {[%clk 0:00:49]}  Rd8 {[%clk 0:01:35]} 30. h4 {[%clk 0:00:46]}  Rd1+ {[%clk 0:01:28]} 31. Kh2 {[%clk 0:00:45]}  Rb1 {[%clk 0:01:28]} 32. Rc8+ {[%clk 0:00:38]}  Kh7 {[%clk 0:01:26]} 33. Rc7 {[%clk 0:00:38]}  Bd5 {[%clk 0:01:18]} 34. Rd7 {[%clk 0:00:34]}  Be6 {[%clk 0:01:14]} 35. Re7 {[%clk 0:00:33]}  Bc4 {[%clk 0:01:07]} 36. Ne4 {[%clk 0:00:31]}  Kh8 {[%clk 0:01:01]} 37. Rc7 {[%clk 0:00:25]}  Bg8 {[%clk 0:00:58]} 38. Nd6 {[%clk 0:00:22]}  f5 {[%clk 0:00:39]} 39. Ne8 {[%clk 0:00:20]}  Bf8 {[%clk 0:00:39]} 40. Bg5 {[%clk 0:00:18]}  Bd5 {[%clk 0:00:34]} 41. Bf6+ {[%clk 0:00:17]}  Kg8 {[%clk 0:00:34]} 42. Bxe5 {[%clk 0:00:17]}  Be7 {[%clk 0:00:30]} 43. Rxe7 {[%clk 0:00:16]}  Kf8 {[%clk 0:00:30]} 44. Rd7 {[%clk 0:00:16]}  Bc6 {[%clk 0:00:26]} 45. Rc7 {[%clk 0:00:11]}  Bxe8 {[%clk 0:00:25]} 46. Rb7 {[%clk 0:00:11]}  Re1 {[%clk 0:00:23]} 47. Bg7+ {[%clk 0:00:07]}  Kg8 {[%clk 0:00:23]} 48. Bf6 {[%clk 0:00:06]}  Re4 {[%clk 0:00:22]} 49. f3 {[%clk 0:00:06]}  Rc4 {[%clk 0:00:21]} 50. b3 {[%clk 0:00:05]}  Rc6 {[%clk 0:00:18]} 51. Bg5 {[%clk 0:00:03]}  Bf7 {[%clk 0:00:18]} 52. Rxb4 {[%clk 0:00:03]}  Rc3 {[%clk 0:00:18]} 53. Bf6 {[%clk 0:00:02]}  Rxb3 {[%clk 0:00:17]} 54. Rd4 {[%clk 0:00:02]}  Rb8 {[%clk 0:00:17]} 55. Rd8+ {[%clk 0:00:02]}  Rxd8 {[%clk 0:00:17]} 56. Bxd8 {[%clk 0:00:03]}  Be6 {[%clk 0:00:17]} 57. Bg5 {[%clk 0:00:04]}  Kf7 {[%clk 0:00:18]} 58. Kg3 {[%clk 0:00:04]}  Bd5 {[%clk 0:00:18]} 59. Kf4 {[%clk 0:00:05]}  Be6 {[%clk 0:00:18]} 60. Bd8 {[%clk 0:00:06]}  Ba2 {[%clk 0:00:19]} 61. Ba5 {[%clk 0:00:07]}  Be6 {[%clk 0:00:19]} 62. g4 {[%clk 0:00:07]}  fxg4 {[%clk 0:00:19]} 63. fxg4 {[%clk 0:00:08]}  Bxg4 {[%clk 0:00:20]} 64. Kg5 {[%clk 0:00:08]}  Kg7 {[%clk 0:00:21]} 65. Bc3+ {[%clk 0:00:08]}  Kh7 {[%clk 0:00:21]} 66. Bd4 {[%clk 0:00:08]}  Kg8 {[%clk 0:00:22]} 67. Be5 {[%clk 0:00:09]}  Kf7 {[%clk 0:00:23]} 68. Bd4 {[%clk 0:00:09]}  Ke6 {[%clk 0:00:23]} 69. Kxg6 {[%clk 0:00:09]}  Kd5 {[%clk 0:00:24]} 70. Bf6 {[%clk 0:00:09]}  Ke4 {[%clk 0:00:25]} 71. Bg5 {[%clk 0:00:10]}  Kf3 {[%clk 0:00:25]} 72. Kg7 {[%clk 0:00:11]}  Kg3 {[%clk 0:00:26]} 73. Kf8 {[%clk 0:00:11]}  Kf3 {[%clk 0:00:27]} 74. Ke7 {[%clk 0:00:12]}  Kg3 {[%clk 0:00:28]} 75. Kd6 {[%clk 0:00:13]}  Kf3 {[%clk 0:00:28]} 76. Kc5 {[%clk 0:00:14]}  Kg3 {[%clk 0:00:29]} 77. Kd6 {[%clk 0:00:14]}  Kf3 {[%clk 0:00:30]} 78. Kc5 {[%clk 0:00:15]}  Kg3 {[%clk 0:00:31]} 79. Kb6 {[%clk 0:00:16]}  Kf3 {[%clk 0:00:31]} 80. Kc7 {[%clk 0:00:17]}  Kg3 {[%clk 0:00:32]} 81. Kd8 {[%clk 0:00:18]}  Kf3 {[%clk 0:00:33]} 82. Ke7 {[%clk 0:00:19]}  Kg3 {[%clk 0:00:33]} 83. Kd6 {[%clk 0:00:20]} 1/2-1/2


[Site "https://www.chess.com"]

[Event "Titled Tuesday Blitz August 08 Late 2023"]
[White "JERO-8914"]
[Black "Kukavica, Tony"]
[BlackFideId "2062542"]
[WhiteElo "2450"]
[BlackElo "2346"]
[Result "0-1"]
[Round "10"]
[TimeControl "180+1"]
[Date "2023.08.08"]
[WhiteClock "0:00:05"]
[BlackClock "0:00:13"]
[Board "78"]

1. d4 {[%clk 0:03:00]}  Nf6 {[%clk 0:02:55]} 2. Nf3 {[%clk 0:03:00]}  d5 {[%clk 0:02:53]} 3. c4 {[%clk 0:03:00]}  e6 {[%clk 0:02:53]} 4. Nc3 {[%clk 0:02:59]}  c5 {[%clk 0:02:53]} 5. e3 {[%clk 0:02:57]}  Nc6 {[%clk 0:02:52]} 6. a3 {[%clk 0:02:52]}  cxd4 {[%clk 0:02:50]} 7. exd4 {[%clk 0:02:52]}  a6 {[%clk 0:02:41]} 8. cxd5 {[%clk 0:02:46]}  exd5 {[%clk 0:02:36]} 9. Bd3 {[%clk 0:02:46]}  Be6 {[%clk 0:02:30]} 10. Ne2 {[%clk 0:02:42]}  h6 {[%clk 0:02:28]} 11. Ng3 {[%clk 0:02:41]}  Bd6 {[%clk 0:02:25]} 12. O-O {[%clk 0:02:38]}  O-O {[%clk 0:02:23]} 13. b4 {[%clk 0:02:34]}  Bg4 {[%clk 0:02:22]} 14. Bb2 {[%clk 0:02:32]}  Bxg3 {[%clk 0:02:18]} 15. hxg3 {[%clk 0:02:27]}  Ne4 {[%clk 0:02:18]} 16. Re1 {[%clk 0:02:22]}  Re8 {[%clk 0:02:15]} 17. Rc1 {[%clk 0:02:15]}  Qf6 {[%clk 0:02:14]} 18. Re3 {[%clk 0:01:56]}  Ng5 {[%clk 0:02:10]} 19. Be2 {[%clk 0:01:31]}  Rxe3 {[%clk 0:02:09]} 20. fxe3 {[%clk 0:01:32]}  Ne4 {[%clk 0:01:49]} 21. Ne5 {[%clk 0:01:00]}  Qf2+ {[%clk 0:01:45]} 22. Kh2 {[%clk 0:00:58]}  Qxg3+ {[%clk 0:01:40]} 23. Kg1 {[%clk 0:00:55]}  Qf2+ {[%clk 0:01:38]} 24. Kh2 {[%clk 0:00:55]}  Bxe2 {[%clk 0:01:35]} 25. Qe1 {[%clk 0:00:54]}  Nxe5 {[%clk 0:01:21]} 26. dxe5 {[%clk 0:00:51]}  Qxe3 {[%clk 0:01:07]} 27. Qh4 {[%clk 0:00:46]}  Qg5 {[%clk 0:01:05]} 28. Qxg5 {[%clk 0:00:43]}  hxg5 {[%clk 0:01:04]} 29. Rc7 {[%clk 0:00:44]}  Rd8 {[%clk 0:00:53]} 30. Bd4 {[%clk 0:00:45]}  f6 {[%clk 0:00:43]} 31. e6 {[%clk 0:00:44]}  Re8 {[%clk 0:00:42]} 32. Rxb7 {[%clk 0:00:37]}  Rxe6 {[%clk 0:00:42]} 33. Rd7 {[%clk 0:00:37]}  Bc4 {[%clk 0:00:38]} 34. a4 {[%clk 0:00:36]}  Kh7 {[%clk 0:00:34]} 35. Rb7 {[%clk 0:00:28]}  Kg6 {[%clk 0:00:32]} 36. Rb8 {[%clk 0:00:28]}  Nd6 {[%clk 0:00:29]} 37. Rb6 {[%clk 0:00:24]}  Kf5 {[%clk 0:00:28]} 38. Kh3 {[%clk 0:00:19]}  g4+ {[%clk 0:00:28]} 39. Kh4 {[%clk 0:00:17]}  Ne4 {[%clk 0:00:24]} 40. Rb8 {[%clk 0:00:15]}  g6 {[%clk 0:00:19]} 41. Rf8 {[%clk 0:00:10]}  Re7 {[%clk 0:00:19]} 42. Rh8 {[%clk 0:00:09]}  Rb7 {[%clk 0:00:17]} 43. b5 {[%clk 0:00:07]}  axb5 {[%clk 0:00:17]} 44. a5 {[%clk 0:00:08]}  b4 {[%clk 0:00:13]} 45. Ra8 {[%clk 0:00:06]}  b3 {[%clk 0:00:13]} 46. a6 {[%clk 0:00:06]}  Bxa6 {[%clk 0:00:13]} 47. Bb2 {[%clk 0:00:05]}  Rh7# {[%clk 0:00:13]} 0-1


[Site "https://www.chess.com"]

[Event "Titled Tuesday Blitz August 08 Late 2023"]
[White "Vafin, Ayrat"]
[Black "Guerrero Vargas, Andres Jesus"]
[WhiteFideId "4146530"]
[BlackFideId "3902048"]
[WhiteElo "2321"]
[BlackElo "2444"]
[Result "1-0"]
[Round "10"]
[TimeControl "180+1"]
[Date "2023.08.08"]
[WhiteClock "0:00:16"]
[BlackClock "0:00:00"]
[Board "80"]

1. Nf3 {[%clk 0:03:00]}  Nf6 {[%clk 0:02:59]} 2. g3 {[%clk 0:03:01]}  g6 {[%clk 0:03:00]} 3. Bg2 {[%clk 0:03:02]}  Bg7 {[%clk 0:03:00]} 4. d4 {[%clk 0:03:02]}  O-O {[%clk 0:03:00]} 5. O-O {[%clk 0:03:03]}  d6 {[%clk 0:03:00]} 6. c4 {[%clk 0:03:03]}  Nbd7 {[%clk 0:03:00]} 7. Nc3 {[%clk 0:03:03]}  e5 {[%clk 0:03:01]} 8. e4 {[%clk 0:03:04]}  exd4 {[%clk 0:02:58]} 9. Nxd4 {[%clk 0:03:05]}  Re8 {[%clk 0:02:59]} 10. Re1 {[%clk 0:03:05]}  Nc5 {[%clk 0:02:59]} 11. h3 {[%clk 0:03:05]}  h6 {[%clk 0:02:59]} 12. Rb1 {[%clk 0:03:02]}  Bd7 {[%clk 0:02:58]} 13. b4 {[%clk 0:03:00]}  Ne6 {[%clk 0:02:58]} 14. Nde2 {[%clk 0:03:00]}  Ng5 {[%clk 0:02:56]} 15. Bxg5 {[%clk 0:02:54]}  hxg5 {[%clk 0:02:56]} 16. Qd2 {[%clk 0:02:33]}  g4 {[%clk 0:02:54]} 17. hxg4 {[%clk 0:02:25]}  Nxg4 {[%clk 0:02:52]} 18. Rbd1 {[%clk 0:02:22]}  Ne5 {[%clk 0:02:50]} 19. c5 {[%clk 0:02:20]}  dxc5 {[%clk 0:01:34]} 20. bxc5 {[%clk 0:02:11]}  Bg4 {[%clk 0:01:23]} 21. Qe3 {[%clk 0:02:04]}  Qc8 {[%clk 0:01:14]} 22. Nd5 {[%clk 0:01:56]}  c6 {[%clk 0:01:10]} 23. Ndf4 {[%clk 0:01:49]}  Qc7 {[%clk 0:01:03]} 24. f3 {[%clk 0:01:37]}  Be6 {[%clk 0:00:59]} 25. Nxe6 {[%clk 0:01:31]}  Rxe6 {[%clk 0:00:58]} 26. Nf4 {[%clk 0:01:13]}  Ree8 {[%clk 0:00:57]} 27. Bf1 {[%clk 0:01:12]}  Bh6 {[%clk 0:00:55]} 28. Qc3 {[%clk 0:01:09]}  Nd7 {[%clk 0:00:44]} 29. Rd6 {[%clk 0:00:36]}  Bg7 {[%clk 0:00:33]} 30. Qc2 {[%clk 0:00:33]}  Be5 {[%clk 0:00:22]} 31. Red1 {[%clk 0:00:28]}  Kg7 {[%clk 0:00:14]} 32. Rxd7 {[%clk 0:00:25]}  Qa5 {[%clk 0:00:05]} 33. Qc4 {[%clk 0:00:24]}  Rf8 {[%clk 0:00:05]} 34. Ne6+ {[%clk 0:00:24]}  Kg8 {[%clk 0:00:05]} 35. Nxf8 {[%clk 0:00:24]}  Rxf8 {[%clk 0:00:05]} 36. Rxf7 {[%clk 0:00:18]}  Rxf7 {[%clk 0:00:05]} 37. Rd7 {[%clk 0:00:17]}  Bd4+ {[%clk 0:00:00]} 38. Kh1 {[%clk 0:00:16]} 1-0


[Site "https://www.chess.com"]

[Event "Titled Tuesday Blitz August 08 Late 2023"]
[White "Bueno, Alfeu Junior Varela"]
[Black "Kula, Robert"]
[WhiteFideId "2108879"]
[BlackFideId "1101218"]
[WhiteElo "2421"]
[BlackElo "2259"]
[Result "0-1"]
[Round "10"]
[TimeControl "180+1"]
[Date "2023.08.08"]
[WhiteClock "0:00:12"]
[BlackClock "0:00:20"]
[Board "82"]

1. e4 {[%clk 0:03:00]}  g6 {[%clk 0:02:58]} 2. d4 {[%clk 0:02:57]}  Bg7 {[%clk 0:02:59]} 3. Nf3 {[%clk 0:02:57]}  d6 {[%clk 0:02:59]} 4. Nc3 {[%clk 0:02:56]}  Nd7 {[%clk 0:02:58]} 5. Bc4 {[%clk 0:02:51]}  e6 {[%clk 0:02:55]} 6. O-O {[%clk 0:02:48]}  c6 {[%clk 0:02:46]} 7. d5 {[%clk 0:02:42]}  cxd5 {[%clk 0:02:41]} 8. exd5 {[%clk 0:02:43]}  e5 {[%clk 0:02:40]} 9. Ne4 {[%clk 0:02:18]}  Ndf6 {[%clk 0:02:04]} 10. Bb5+ {[%clk 0:02:15]}  Kf8 {[%clk 0:02:03]} 11. Ng3 {[%clk 0:01:53]}  Ne7 {[%clk 0:02:02]} 12. c4 {[%clk 0:01:52]}  Bd7 {[%clk 0:01:49]} 13. Bxd7 {[%clk 0:01:41]}  Nxd7 {[%clk 0:01:48]} 14. b3 {[%clk 0:01:42]}  h6 {[%clk 0:01:12]} 15. Ba3 {[%clk 0:01:41]}  Nf6 {[%clk 0:00:48]} 16. Re1 {[%clk 0:01:34]}  Kg8 {[%clk 0:00:45]} 17. Nd2 {[%clk 0:01:25]}  Kh7 {[%clk 0:00:44]} 18. Qf3 {[%clk 0:01:18]}  b6 {[%clk 0:00:38]} 19. Rac1 {[%clk 0:01:16]}  Rf8 {[%clk 0:00:36]} 20. Nde4 {[%clk 0:00:48]}  Ne8 {[%clk 0:00:36]} 21. Nc3 {[%clk 0:00:42]}  f5 {[%clk 0:00:35]} 22. Qd1 {[%clk 0:00:31]}  a6 {[%clk 0:00:34]} 23. Na4 {[%clk 0:00:30]}  b5 {[%clk 0:00:30]} 24. Nc3 {[%clk 0:00:29]}  Rb8 {[%clk 0:00:27]} 25. cxb5 {[%clk 0:00:21]}  axb5 {[%clk 0:00:28]} 26. Bb4 {[%clk 0:00:22]}  Nf6 {[%clk 0:00:25]} 27. Qe2 {[%clk 0:00:21]}  e4 {[%clk 0:00:24]} 28. Red1 {[%clk 0:00:21]}  Qd7 {[%clk 0:00:21]} 29. Qe3 {[%clk 0:00:15]}  Ng4 {[%clk 0:00:20]} 30. Qe2 {[%clk 0:00:15]}  Be5 {[%clk 0:00:20]} 31. Ngxe4 {[%clk 0:00:14]}  fxe4 {[%clk 0:00:20]} 32. Qxg4 {[%clk 0:00:12]}  Qxg4 {[%clk 0:00:20]} 0-1


[Site "https://www.chess.com"]

[Event "Titled Tuesday Blitz August 08 Late 2023"]
[White "chessmateto"]
[Black "Fernandez Bustamante, Leancy B."]
[BlackFideId "3523870"]
[WhiteElo "2417"]
[BlackElo "2222"]
[Result "0-1"]
[Round "10"]
[TimeControl "180+1"]
[Date "2023.08.08"]
[WhiteClock "0:00:08"]
[BlackClock "0:00:24"]
[Board "83"]

1. Nf3 {[%clk 0:03:00]}  c5 {[%clk 0:03:00]} 2. c4 {[%clk 0:03:00]}  Nc6 {[%clk 0:02:58]} 3. Nc3 {[%clk 0:02:59]}  d6 {[%clk 0:02:58]} 4. d4 {[%clk 0:02:58]}  cxd4 {[%clk 0:02:59]} 5. Nxd4 {[%clk 0:02:58]}  Nxd4 {[%clk 0:03:00]} 6. Qxd4 {[%clk 0:02:58]}  Nf6 {[%clk 0:03:01]} 7. e4 {[%clk 0:02:57]}  g6 {[%clk 0:03:01]} 8. Be2 {[%clk 0:02:55]}  Bg7 {[%clk 0:03:02]} 9. Qd1 {[%clk 0:02:46]}  O-O {[%clk 0:03:01]} 10. O-O {[%clk 0:02:46]}  Be6 {[%clk 0:03:00]} 11. Be3 {[%clk 0:02:46]}  Qa5 {[%clk 0:02:58]} 12. f3 {[%clk 0:02:40]}  Rfc8 {[%clk 0:02:54]} 13. Nd5 {[%clk 0:02:37]}  Bxd5 {[%clk 0:02:44]} 14. cxd5 {[%clk 0:02:36]}  Nd7 {[%clk 0:02:42]} 15. Qb3 {[%clk 0:02:27]}  Nc5 {[%clk 0:02:36]} 16. Qd1 {[%clk 0:02:00]}  Bxb2 {[%clk 0:02:31]} 17. Rb1 {[%clk 0:02:01]}  Bg7 {[%clk 0:02:23]} 18. Qd2 {[%clk 0:01:28]}  Qxd2 {[%clk 0:02:14]} 19. Bxd2 {[%clk 0:01:28]}  b6 {[%clk 0:02:08]} 20. Bb5 {[%clk 0:01:24]}  Bd4+ {[%clk 0:02:00]} 21. Kh1 {[%clk 0:01:23]}  a6 {[%clk 0:01:50]} 22. Bc6 {[%clk 0:01:23]}  Rab8 {[%clk 0:01:49]} 23. g3 {[%clk 0:01:18]}  h5 {[%clk 0:01:47]} 24. Bg5 {[%clk 0:01:15]}  Kf8 {[%clk 0:01:40]} 25. g4 {[%clk 0:01:11]}  hxg4 {[%clk 0:01:34]} 26. Rbe1 {[%clk 0:01:00]}  gxf3 {[%clk 0:01:31]} 27. Rxf3 {[%clk 0:00:59]}  f6 {[%clk 0:01:27]} 28. Bc1 {[%clk 0:00:52]}  Kg7 {[%clk 0:01:24]} 29. h3 {[%clk 0:00:45]}  Rh8 {[%clk 0:01:20]} 30. Kg2 {[%clk 0:00:45]}  Rh4 {[%clk 0:01:19]} 31. Ba3 {[%clk 0:00:38]}  Nxe4 {[%clk 0:01:07]} 32. Rd3 {[%clk 0:00:31]}  Be5 {[%clk 0:00:56]} 33. Bb4 {[%clk 0:00:25]}  Rbh8 {[%clk 0:00:54]} 34. Bb7 {[%clk 0:00:21]}  a5 {[%clk 0:00:49]} 35. Ba3 {[%clk 0:00:21]}  Nc5 {[%clk 0:00:29]} 36. Bxc5 {[%clk 0:00:19]}  bxc5 {[%clk 0:00:28]} 37. Rb1 {[%clk 0:00:19]}  c4 {[%clk 0:00:26]} 38. Ra3 {[%clk 0:00:18]}  c3 {[%clk 0:00:26]} 39. Rxa5 {[%clk 0:00:14]}  Rxh3 {[%clk 0:00:25]} 40. Ra7 {[%clk 0:00:11]}  Rg3+ {[%clk 0:00:25]} 41. Kf2 {[%clk 0:00:10]}  Rh2+ {[%clk 0:00:24]} 42. Kf1 {[%clk 0:00:10]}  Rh1+ {[%clk 0:00:23]} 43. Kf2 {[%clk 0:00:08]}  Rxb1 {[%clk 0:00:24]} 44. Bc6 {[%clk 0:00:08]}  Bd4+ {[%clk 0:00:24]} 45. Kxg3 {[%clk 0:00:08]}  Bxa7 {[%clk 0:00:24]} 46. Be8 {[%clk 0:00:08]}  c2 {[%clk 0:00:24]} 47. Bxg6 {[%clk 0:00:08]} 0-1


[Site "https://www.chess.com"]